[Event "*** MasterClass Titled Tuesday Blitz"]
[Site "Chess.com"]
[Date "2017.08.01"]
[Round "1"]
[White "krzyzan94"]
[Black "HaryKane"]
[Result "1-0"]
[WhiteElo "2527"]
[BlackElo "2273"]
[TimeControl "180+2"]
[EndTime "13:07:04 PDT"]
[Termination "krzyzan94 won by resignation"]

1. e4 {[%clk 0:03:01.9]} 1... e5 {[%clk 0:02:42.7]} 2. Nf3 {[%clk 0:03:02.8]}
2... Nc6 {[%clk 0:02:41.4]} 3. Bb5 {[%clk 0:03:03.6]} 3... a5 {[%clk 0:02:41.2]}
4. O-O {[%clk 0:03:00.7]} 4... d6 {[%clk 0:02:36.1]} 5. d4 {[%clk 0:03:01.2]}
5... exd4 {[%clk 0:02:37]} 6. Nxd4 {[%clk 0:02:59.6]} 6... Bd7 {[%clk
0:02:38.4]} 7. Nc3 {[%clk 0:03:01.2]} 7... Nf6 {[%clk 0:02:27.8]} 8. f4 {[%clk
0:02:57.3]} 8... Be7 {[%clk 0:02:22]} 9. Nxc6 {[%clk 0:02:56]} 9... bxc6 {[%clk
0:02:22.4]} 10. Bd3 {[%clk 0:02:56.8]} 10... O-O {[%clk 0:02:21.8]} 11. Qf3
{[%clk 0:02:55.6]} 11... Re8 {[%clk 0:02:16.2]} 12. e5 {[%clk 0:02:50.1]} 12...
Nd5 {[%clk 0:02:17.3]} 13. Nxd5 {[%clk 0:02:45.9]} 13... cxd5 {[%clk 0:02:18]}
14. Qxd5 {[%clk 0:02:47.8]} 14... Be6 {[%clk 0:02:11.1]} 15. Qe4 {[%clk
0:02:48.8]} 15... g6 {[%clk 0:02:10.8]} 16. f5 {[%clk 0:02:39.4]} 16... d5
{[%clk 0:02:03.9]} 17. Qg4 {[%clk 0:02:38.7]} 17... Bc8 {[%clk 0:01:54.1]} 18.
e6 {[%clk 0:02:33.3]} 18... Bc5+ {[%clk 0:01:44.4]} 19. Kh1 {[%clk 0:02:33.6]}
19... Bxe6 {[%clk 0:01:43.9]} 20. fxe6 {[%clk 0:02:33.3]} 20... Rxe6 {[%clk
0:01:45.8]} 21. Bg5 {[%clk 0:02:30]} 21... Qe8 {[%clk 0:01:40.8]} 22. Bf6 {[%clk
0:02:21.1]} 22... Be7 {[%clk 0:01:39.3]} 23. Bxe7 {[%clk 0:02:07.8]} 23... Qxe7
{[%clk 0:01:41.2]} 24. Qf3 {[%clk 0:02:09.3]} 24... c6 {[%clk 0:01:38.3]} 25.
Rf2 {[%clk 0:02:02.2]} 25... Re8 {[%clk 0:01:32]} 26. Raf1 {[%clk 0:02:03.2]}
26... f5 {[%clk 0:01:23.1]} 27. b3 {[%clk 0:01:57.9]} 27... Qg5 {[%clk
0:01:19.1]} 28. Qf4 {[%clk 0:01:55.2]} 28... Qf6 {[%clk 0:01:15.9]} 29. g4
{[%clk 0:01:55]} 29... Re1 {[%clk 0:01:06.1]} 30. gxf5 {[%clk 0:01:54.5]} 30...
g5 {[%clk 0:01:02.7]} 31. Qg3 {[%clk 0:01:52.5]} 31... h6 {[%clk 0:01:02.5]} 32.
Rxe1 {[%clk 0:01:43.6]} 32... Rxe1+ {[%clk 0:01:02.9]} 33. Kg2 {[%clk
0:01:45.1]} 33... c5 {[%clk 0:00:54.3]} 34. Qb8+ {[%clk 0:01:45.7]} 34... Kf7
{[%clk 0:00:55.2]} 35. Qc7+ {[%clk 0:01:46.8]} 35... Qe7 {[%clk 0:00:51]} 36.
Qxe7+ {[%clk 0:01:47.5]} 36... Rxe7 {[%clk 0:00:48.6]} 37. Re2 {[%clk
0:01:46.9]} 37... Rc7 {[%clk 0:00:46.5]} 38. Re5 {[%clk 0:01:45]} 38... c4
{[%clk 0:00:42.8]} 39. bxc4 {[%clk 0:01:46]} 39... dxc4 {[%clk 0:00:43.3]} 40.
Be4 {[%clk 0:01:47.3]} 40... a4 {[%clk 0:00:43.7]} 41. Ra5 {[%clk 0:01:46.6]}
41... g4 {[%clk 0:00:43.2]} 42. Kg3 {[%clk 0:01:47.5]} 42... Re7 {[%clk
0:00:41.9]} 43. Kf4 {[%clk 0:01:48.7]} 43... h5 {[%clk 0:00:39.9]} 44. Bd5+
{[%clk 0:01:49.8]} 44... Kg7 {[%clk 0:00:39.2]} 45. Kg5 {[%clk 0:01:50.3]} 45...
Rd7 {[%clk 0:00:38.5]} 46. f6+ {[%clk 0:01:50.3]} 46... Kh7 {[%clk 0:00:38.1]}
47. Be4+ {[%clk 0:01:50.6]} 1-0

[Event "*** MasterClass Titled Tuesday Blitz"]
[Site "Chess.com"]
[Date "2017.08.01"]
[Round "1"]
[White "Adham_Fawzy"]
[Black "Sebastian"]
[Result "0-1"]
[WhiteElo "2384"]
[BlackElo "2785"]
[TimeControl "180+2"]
[EndTime "13:07:11 PDT"]
[Termination "Sebastian won by resignation"]

1. e4 {[%clk 0:02:56]} 1... e5 {[%clk 0:03:00.6]} 2. Nf3 {[%clk 0:02:57.4]} 2...
Nc6 {[%clk 0:03:01.6]} 3. Bb5 {[%clk 0:02:58.7]} 3... Nf6 {[%clk 0:03:01.8]} 4.
d3 {[%clk 0:02:58.3]} 4... d6 {[%clk 0:03:02.1]} 5. O-O {[%clk 0:02:58.6]} 5...
Be7 {[%clk 0:03:03.4]} 6. Nc3 {[%clk 0:02:59.6]} 6... O-O {[%clk 0:03:03.3]} 7.
h3 {[%clk 0:03:00.3]} 7... a6 {[%clk 0:02:58.8]} 8. Ba4 {[%clk 0:03:01.4]} 8...
b5 {[%clk 0:02:59.8]} 9. Bb3 {[%clk 0:03:02.4]} 9... Na5 {[%clk 0:03:01.5]} 10.
Bg5 {[%clk 0:03:01.4]} 10... c6 {[%clk 0:02:43.8]} 11. Re1 {[%clk 0:02:59.7]}
11... h6 {[%clk 0:02:40.8]} 12. Bh4 {[%clk 0:02:59.2]} 12... Nxb3 {[%clk
0:02:33.1]} 13. axb3 {[%clk 0:02:59.7]} 13... Be6 {[%clk 0:02:34.6]} 14. d4
{[%clk 0:02:59.3]} 14... Qc7 {[%clk 0:02:34.5]} 15. Qd2 {[%clk 0:02:50.3]} 15...
Rfe8 {[%clk 0:02:31.2]} 16. Rad1 {[%clk 0:02:49.1]} 16... Rad8 {[%clk
0:02:28.8]} 17. Re2 {[%clk 0:02:42.1]} 17... Nh5 {[%clk 0:02:22.8]} 18. Bxe7
{[%clk 0:02:36.5]} 18... Qxe7 {[%clk 0:02:23.6]} 19. d5 {[%clk 0:02:37.7]} 19...
cxd5 {[%clk 0:02:23.4]} 20. exd5 {[%clk 0:02:36.1]} 20... Bc8 {[%clk 0:02:21]}
21. Nd4 {[%clk 0:02:34.3]} 21... Bd7 {[%clk 0:01:44.1]} 22. Nc6 {[%clk
0:02:22.3]} 22... Bxc6 {[%clk 0:01:44.6]} 23. dxc6 {[%clk 0:02:24.2]} 23... Qc7
{[%clk 0:01:45.5]} 24. Nd5 {[%clk 0:02:22]} 24... Qxc6 {[%clk 0:01:46.6]} 25.
Rde1 {[%clk 0:02:14.9]} 25... Re6 {[%clk 0:01:45.5]} 26. f4 {[%clk 0:02:12.3]}
26... Nxf4 {[%clk 0:01:09.5]} 27. Nxf4 {[%clk 0:02:12.4]} 27... exf4 {[%clk
0:01:11.4]} 28. Rxe6 {[%clk 0:02:13.9]} 28... fxe6 {[%clk 0:01:12.9]} 29. Rxe6
{[%clk 0:02:14.4]} 29... f3 {[%clk 0:01:12.6]} 30. Re7 {[%clk 0:02:08.4]} 30...
Qc5+ {[%clk 0:01:04.6]} 31. Qf2 {[%clk 0:01:58.5]} 31... Qg5 {[%clk 0:00:57]}
32. Re3 {[%clk 0:01:24]} 32... fxg2 {[%clk 0:00:54.6]} 33. Rg3 {[%clk
0:01:24.1]} 33... Qc1+ {[%clk 0:00:56]} 34. Kxg2 {[%clk 0:01:25.4]} 34... Qxb2
{[%clk 0:00:52.3]} 35. Qd2 {[%clk 0:01:26]} 35... Qe5 {[%clk 0:00:51.9]} 36. Qd3
{[%clk 0:01:23.4]} 36... Rf8 {[%clk 0:00:51]} 37. Re3 {[%clk 0:01:22.1]} 37...
Qf4 {[%clk 0:00:47.5]} 38. Qd5+ {[%clk 0:01:14.6]} 38... Kh8 {[%clk 0:00:47.9]}
39. Re2 {[%clk 0:01:14]} 39... Qf1+ {[%clk 0:00:47.8]} 0-1

[Event "*** MasterClass Titled Tuesday Blitz"]
[Site "Chess.com"]
[Date "2017.08.01"]
[Round "1"]
[White "Vrolijk"]
[Black "Big_Fishy"]
[Result "1/2-1/2"]
[WhiteElo "2505"]
[BlackElo "2259"]
[TimeControl "180+2"]
[EndTime "13:07:13 PDT"]
[Termination "Game drawn by agreement"]

1. e4 {[%clk 0:03:01]} 1... c5 {[%clk 0:02:59.9]} 2. Nf3 {[%clk 0:02:54.8]} 2...
Nc6 {[%clk 0:03:01.2]} 3. Bb5 {[%clk 0:02:55.2]} 3... g6 {[%clk 0:03:01.9]} 4.
Bxc6 {[%clk 0:02:56.3]} 4... dxc6 {[%clk 0:03:02.9]} 5. O-O {[%clk 0:02:57]}
5... Bg4 {[%clk 0:03:00.8]} 6. d3 {[%clk 0:02:55.2]} 6... e5 {[%clk 0:03:00.8]}
7. h3 {[%clk 0:02:54.4]} 7... Bxf3 {[%clk 0:03:01.8]} 8. Qxf3 {[%clk 0:02:56.3]}
8... f6 {[%clk 0:02:57.6]} 9. Nc3 {[%clk 0:02:53.2]} 9... Nh6 {[%clk 0:02:56.6]}
10. Qe2 {[%clk 0:02:42.4]} 10... g5 {[%clk 0:02:54.2]} 11. h4 {[%clk 0:02:32.8]}
11... Nf7 {[%clk 0:02:53.4]} 12. hxg5 {[%clk 0:02:29.3]} 12... fxg5 {[%clk
0:02:54.2]} 13. Nd1 {[%clk 0:02:25.7]} 13... Qd7 {[%clk 0:02:47.8]} 14. Ne3
{[%clk 0:02:25.6]} 14... O-O-O {[%clk 0:02:45.1]} 15. Qh5 {[%clk 0:02:16.4]}
15... Qe6 {[%clk 0:02:37.6]} 16. Nf5 {[%clk 0:02:08.1]} 16... Be7 {[%clk
0:02:24.6]} 17. Be3 {[%clk 0:02:03.3]} 17... Rdg8 {[%clk 0:02:06.2]} 18. Nxe7+
{[%clk 0:02:00.4]} 18... Qxe7 {[%clk 0:02:06.8]} 19. Bxc5 {[%clk 0:02:02.3]}
19... Qxc5 {[%clk 0:02:03.8]} 20. Qxf7 {[%clk 0:02:03.2]} 20... h5 {[%clk
0:02:02.6]} 21. b4 {[%clk 0:02:02.3]} 21... Qd6 {[%clk 0:02:03]} 22. Rab1 {[%clk
0:01:58.4]} 22... Rf8 {[%clk 0:01:56]} 23. Qc4 {[%clk 0:01:58.6]} 23... g4
{[%clk 0:01:53.9]} 24. b5 {[%clk 0:01:59.4]} 24... c5 {[%clk 0:01:52.4]} 25. b6
{[%clk 0:01:47.7]} 25... axb6 {[%clk 0:01:39.3]} 26. Rb2 {[%clk 0:01:48.8]}
26... g3 {[%clk 0:01:34.9]} 27. f3 {[%clk 0:01:43.8]} 27... Qf6 {[%clk
0:01:16.7]} 28. Rfb1 {[%clk 0:01:37.7]} 28... Qh4 {[%clk 0:01:16.7]} 29. Qe6+
{[%clk 0:01:38.3]} 29... Kb8 {[%clk 0:01:05]} 30. Qh3 {[%clk 0:01:33.4]} 30...
Qxh3 {[%clk 0:00:56.7]} 31. gxh3 {[%clk 0:01:35.3]} 31... Rxf3 {[%clk
0:00:55.7]} 32. Rxb6 {[%clk 0:01:35.7]} 32... Rh7 {[%clk 0:00:55.6]} 33. Rf1
{[%clk 0:01:21.5]} 33... Rxf1+ {[%clk 0:00:49.5]} 34. Kxf1 {[%clk 0:01:23.4]}
34... h4 {[%clk 0:00:50.8]} 35. Rf6 {[%clk 0:01:21.7]} 35... Kc7 {[%clk
0:00:51]} 36. Kg2 {[%clk 0:01:17.5]} 36... c4 {[%clk 0:00:40.6]} 37. dxc4 {[%clk
0:01:17.8]} 37... Rd7 {[%clk 0:00:40.8]} 38. Rh6 {[%clk 0:01:16.4]} 38... Rd2+
{[%clk 0:00:41]} 39. Kg1 {[%clk 0:01:17.8]} 39... Rd1+ {[%clk 0:00:30.2]} 40.
Kg2 {[%clk 0:01:17.6]} 40... Rd2+ {[%clk 0:00:31.6]} 1/2-1/2

[Event "*** MasterClass Titled Tuesday Blitz"]
[Site "Chess.com"]
[Date "2017.08.01"]
[Round "1"]
[White "petrpalachev"]
[Black "Grootneus"]
[Result "1-0"]
[WhiteElo "2419"]
[BlackElo "2041"]
[TimeControl "180+2"]
[EndTime "13:07:13 PDT"]
[Termination "petrpalachev won by checkmate"]

1. d4 {[%clk 0:03:01.9]} 1... Nf6 {[%clk 0:03:00.4]} 2. c4 {[%clk 0:03:02.5]}
2... c5 {[%clk 0:03:00.9]} 3. d5 {[%clk 0:03:03.4]} 3... b5 {[%clk 0:03:02.5]}
4. cxb5 {[%clk 0:03:04.6]} 4... a6 {[%clk 0:03:04.2]} 5. bxa6 {[%clk 0:03:04.8]}
5... g6 {[%clk 0:03:05.9]} 6. Nc3 {[%clk 0:03:06.1]} 6... Bg7 {[%clk 0:03:05]}
7. e4 {[%clk 0:03:07.1]} 7... Qa5 {[%clk 0:03:03.7]} 8. Bd2 {[%clk 0:03:02.3]}
8... d6 {[%clk 0:02:49.1]} 9. Nb5 {[%clk 0:02:55.9]} 9... Qb6 {[%clk 0:02:42.8]}
10. a7 {[%clk 0:02:51.8]} 10... Nbd7 {[%clk 0:02:40.5]} 11. Bc3 {[%clk
0:02:51.8]} 11... O-O {[%clk 0:02:38.4]} 12. Qc2 {[%clk 0:02:37.6]} 12... Ba6
{[%clk 0:02:19.3]} 13. a4 {[%clk 0:02:37.4]} 13... Bxb5 {[%clk 0:02:07.8]} 14.
Bxb5 {[%clk 0:02:37.1]} 14... Rxa7 {[%clk 0:02:04.9]} 15. b3 {[%clk 0:02:27.5]}
15... Ng4 {[%clk 0:01:43.3]} 16. Bxg7 {[%clk 0:02:27]} 16... Kxg7 {[%clk
0:01:44.8]} 17. Qc3+ {[%clk 0:02:27.2]} 17... f6 {[%clk 0:01:42.5]} 18. h3
{[%clk 0:02:24.5]} 18... Nge5 {[%clk 0:01:43.2]} 19. f4 {[%clk 0:02:24.9]} 19...
Nf7 {[%clk 0:01:44.5]} 20. Nf3 {[%clk 0:02:18.7]} 20... Nb8 {[%clk 0:01:22.4]}
21. O-O {[%clk 0:02:13.3]} 21... Na6 {[%clk 0:01:23.2]} 22. e5 {[%clk
0:01:56.5]} 22... Nb4 {[%clk 0:01:14.9]} 23. Bc4 {[%clk 0:01:41]} 23... Qb7
{[%clk 0:01:08]} 24. Rad1 {[%clk 0:01:36.1]} 24... Nh6 {[%clk 0:00:49.3]} 25. g4
{[%clk 0:01:34.2]} 25... Nf7 {[%clk 0:00:49.1]} 26. Rf2 {[%clk 0:01:22.7]} 26...
fxe5 {[%clk 0:00:37.1]} 27. fxe5 {[%clk 0:01:22.9]} 27... dxe5 {[%clk
0:00:26.6]} 28. Nxe5 {[%clk 0:01:21.3]} 28... Kg8 {[%clk 0:00:23.4]} 29. d6
{[%clk 0:01:11.1]} 29... exd6 {[%clk 0:00:16.3]} 30. Bxf7+ {[%clk 0:01:09.4]}
30... Rxf7 {[%clk 0:00:14.8]} 31. Nxf7 {[%clk 0:01:06.7]} 31... Qe4 {[%clk
0:00:14.6]} 32. Nh6# {[%clk 0:01:07.2]} 1-0

[Event "*** MasterClass Titled Tuesday Blitz"]
[Site "Chess.com"]
[Date "2017.08.01"]
[Round "1"]
[White "IMcoach"]
[Black "GrigorGrigorov"]
[Result "0-1"]
[WhiteElo "2313"]
[BlackElo "2610"]
[TimeControl "180+2"]
[EndTime "13:07:27 PDT"]
[Termination "GrigorGrigorov won by resignation"]

1. e4 {[%clk 0:02:58]} 1... c5 {[%clk 0:03:00.6]} 2. f4 {[%clk 0:02:57.8]} 2...
d5 {[%clk 0:02:58.9]} 3. d3 {[%clk 0:02:58.7]} 3... dxe4 {[%clk 0:02:53.2]} 4.
dxe4 {[%clk 0:02:59.5]} 4... Qxd1+ {[%clk 0:02:54]} 5. Kxd1 {[%clk 0:03:01.4]}
5... Nc6 {[%clk 0:02:52.5]} 6. Nf3 {[%clk 0:02:52.6]} 6... Bg4 {[%clk 0:02:51]}
7. c3 {[%clk 0:02:50.1]} 7... Nf6 {[%clk 0:02:49.1]} 8. Nd2 {[%clk 0:02:30]}
8... O-O-O {[%clk 0:02:49.4]} 9. Kc2 {[%clk 0:02:31.1]} 9... Bxf3 {[%clk
0:02:37.8]} 10. gxf3 {[%clk 0:02:30.7]} 10... g6 {[%clk 0:02:39.3]} 11. Bh3+
{[%clk 0:02:21]} 11... Kc7 {[%clk 0:02:37.6]} 12. Nc4 {[%clk 0:02:14.8]} 12...
Bh6 {[%clk 0:02:36.5]} 13. f5 {[%clk 0:02:02.4]} 13... Bxc1 {[%clk 0:02:36.2]}
14. Raxc1 {[%clk 0:02:03.6]} 14... Nh5 {[%clk 0:02:37.8]} 15. a4 {[%clk
0:01:55.6]} 15... Nf4 {[%clk 0:02:37.4]} 16. Bf1 {[%clk 0:01:55.5]} 16... gxf5
{[%clk 0:02:36.1]} 17. exf5 {[%clk 0:01:49.7]} 17... Rhg8 {[%clk 0:02:37]} 18.
Re1 {[%clk 0:01:50.6]} 18... Rg5 {[%clk 0:02:33.4]} 19. h4 {[%clk 0:01:41.7]}
19... Rxf5 {[%clk 0:02:30.9]} 20. Rg1 {[%clk 0:01:43.3]} 20... Ng6 {[%clk
0:02:20.3]} 21. Re3 {[%clk 0:00:58.7]} 21... Nxh4 {[%clk 0:02:07.9]} 22. Rh1
{[%clk 0:00:55.8]} 22... Nxf3 {[%clk 0:02:02.5]} 23. Bh3 {[%clk 0:00:56.8]}
23... Rf6 {[%clk 0:01:57.6]} 24. Bg4 {[%clk 0:00:57.7]} 24... Ng5 {[%clk
0:01:55.6]} 25. Rh5 {[%clk 0:00:50.8]} 25... h6 {[%clk 0:01:56]} 26. Bh3 {[%clk
0:00:46.7]} 26... Rf2+ {[%clk 0:01:48.3]} 27. Kb3 {[%clk 0:00:47.5]} 27... Rf6
{[%clk 0:01:45.5]} 28. Bg2 {[%clk 0:00:47.7]} 28... e6 {[%clk 0:01:44.5]} 29.
Bxc6 {[%clk 0:00:45.4]} 29... Kxc6 {[%clk 0:01:44.2]} 30. Ne5+ {[%clk
0:00:46.6]} 30... Kc7 {[%clk 0:01:45.5]} 31. Ng4 {[%clk 0:00:47.7]} 31... Rf4
{[%clk 0:01:38.6]} 32. Nxh6 {[%clk 0:00:47.8]} 32... Ne4 {[%clk 0:01:31.3]} 33.
Re5 {[%clk 0:00:40.3]} 33... Nd2+ {[%clk 0:01:19.7]} 34. Kc2 {[%clk 0:00:41.6]}
34... Nc4 {[%clk 0:01:08.7]} 35. Nxf7 {[%clk 0:00:38.7]} 35... Nxe3+ {[%clk
0:01:07.7]} 36. Rxe3 {[%clk 0:00:39.4]} 36... Rxf7 {[%clk 0:01:08.6]} 37. Rxe6
{[%clk 0:00:39.8]} 37... Rf4 {[%clk 0:01:05.3]} 38. Re7+ {[%clk 0:00:40.2]}
38... Rd7 {[%clk 0:01:06.1]} 39. Re2 {[%clk 0:00:41.9]} 39... c4 {[%clk
0:01:07.2]} 0-1

[Event "*** MasterClass Titled Tuesday Blitz"]
[Site "Chess.com"]
[Date "2017.08.01"]
[Round "1"]
[White "sergiochess83"]
[Black "moventog"]
[Result "1-0"]
[WhiteElo "2656"]
[BlackElo "2344"]
[TimeControl "180+2"]
[EndTime "13:07:54 PDT"]
[Termination "sergiochess83 won by resignation"]

1. e4 {[%clk 0:03:01.9]} 1... d6 {[%clk 0:03:01.3]} 2. d4 {[%clk 0:03:02.4]}
2... Nf6 {[%clk 0:03:02.4]} 3. Nc3 {[%clk 0:03:02.9]} 3... g6 {[%clk 0:03:03.7]}
4. Bg5 {[%clk 0:03:02]} 4... Bg7 {[%clk 0:03:03.9]} 5. Qd2 {[%clk 0:03:03]} 5...
O-O {[%clk 0:03:05.2]} 6. O-O-O {[%clk 0:03:02.7]} 6... c6 {[%clk 0:03:06.2]} 7.
f4 {[%clk 0:03:03]} 7... b5 {[%clk 0:03:04.9]} 8. Bd3 {[%clk 0:03:04.1]} 8... b4
{[%clk 0:02:59.4]} 9. Nce2 {[%clk 0:03:04.6]} 9... Qa5 {[%clk 0:02:59.8]} 10.
Kb1 {[%clk 0:03:03.4]} 10... Nbd7 {[%clk 0:02:55.8]} 11. Nf3 {[%clk 0:03:01.8]}
11... d5 {[%clk 0:02:43.7]} 12. Ng3 {[%clk 0:02:35.4]} 12... dxe4 {[%clk
0:02:24.2]} 13. Nxe4 {[%clk 0:02:36.3]} 13... Nb6 {[%clk 0:02:17.8]} 14. Nc5
{[%clk 0:02:31.2]} 14... Nbd5 {[%clk 0:02:12.6]} 15. Ne5 {[%clk 0:02:30.6]}
15... Qc7 {[%clk 0:02:04]} 16. Rhe1 {[%clk 0:02:29.1]} 16... a5 {[%clk 0:01:59]}
17. f5 {[%clk 0:02:07.1]} 17... a4 {[%clk 0:01:35.5]} 18. fxg6 {[%clk
0:01:43.4]} 18... hxg6 {[%clk 0:01:37.4]} 19. Ka1 {[%clk 0:01:43.8]} 19... a3
{[%clk 0:01:24.9]} 20. b3 {[%clk 0:01:44.7]} 20... Nc3 {[%clk 0:01:25.9]} 21.
Bc4 {[%clk 0:01:36.5]} 21... Nfd5 {[%clk 0:01:20.1]} 22. Bh6 {[%clk 0:01:21.4]}
22... Nxd1 {[%clk 0:01:15.3]} 23. Bxg7 {[%clk 0:01:20.9]} 23... Kxg7 {[%clk
0:01:16.5]} 24. Rxd1 {[%clk 0:01:21]} 24... Qd6 {[%clk 0:01:13.1]} 25. Rf1
{[%clk 0:01:07.6]} 25... Ra5 {[%clk 0:00:59.7]} 26. Qg5 {[%clk 0:00:38.1]} 26...
f5 {[%clk 0:00:16.9]} 27. Bxd5 {[%clk 0:00:30.2]} 27... Rxc5 {[%clk 0:00:17.2]}
28. Nxg6 {[%clk 0:00:19.9]} 28... Qxd5 {[%clk 0:00:12.4]} 29. Nxe7+ {[%clk
0:00:16.8]} 29... Kf7 {[%clk 0:00:12]} 30. Nxd5 {[%clk 0:00:16.4]} 1-0

[Event "*** MasterClass Titled Tuesday Blitz"]
[Site "Chess.com"]
[Date "2017.08.01"]
[Round "1"]
[White "1e41-0"]
[Black "nihalsarin"]
[Result "0-1"]
[WhiteElo "2340"]
[BlackElo "2635"]
[TimeControl "180+2"]
[EndTime "13:07:55 PDT"]
[Termination "nihalsarin won by resignation"]

1. a3 {[%clk 0:03:01.9]} 1... e5 {[%clk 0:02:58.7]} 2. c4 {[%clk 0:03:01.9]}
2... Nf6 {[%clk 0:02:56.3]} 3. e3 {[%clk 0:03:03.3]} 3... c6 {[%clk 0:02:55.1]}
4. Nf3 {[%clk 0:03:02.4]} 4... e4 {[%clk 0:02:55.8]} 5. Nd4 {[%clk 0:03:03.8]}
5... d5 {[%clk 0:02:57.4]} 6. cxd5 {[%clk 0:02:59.9]} 6... cxd5 {[%clk
0:02:58.9]} 7. d3 {[%clk 0:03:01.4]} 7... Bd6 {[%clk 0:02:58.7]} 8. Nc3 {[%clk
0:03:00.6]} 8... O-O {[%clk 0:02:58.8]} 9. Be2 {[%clk 0:02:58.8]} 9... Nc6
{[%clk 0:03:00.1]} 10. Nxc6 {[%clk 0:02:58]} 10... bxc6 {[%clk 0:03:02]} 11. Qc2
{[%clk 0:02:56.5]} 11... Qe7 {[%clk 0:03:01.5]} 12. Bd2 {[%clk 0:02:55.3]} 12...
Bf5 {[%clk 0:02:57.5]} 13. dxe4 {[%clk 0:02:56]} 13... dxe4 {[%clk 0:02:54.4]}
14. b4 {[%clk 0:02:52.1]} 14... a5 {[%clk 0:02:51]} 15. bxa5 {[%clk 0:02:48]}
15... Rxa5 {[%clk 0:02:51.5]} 16. O-O {[%clk 0:02:44.4]} 16... Bg4 {[%clk
0:02:35.1]} 17. Nxe4 {[%clk 0:02:27.8]} 17... Bxh2+ {[%clk 0:02:06.5]} 18. Kh1
{[%clk 0:01:35.9]} 18... Nxe4 {[%clk 0:00:29.1]} 19. Bxg4 {[%clk 0:01:30.1]}
19... Rc5 {[%clk 0:00:25.6]} 20. Bb4 {[%clk 0:00:32.2]} 20... Rxc2 {[%clk
0:00:19.3]} 21. Bxe7 {[%clk 0:00:32.6]} 21... Re8 {[%clk 0:00:21]} 22. Kxh2
{[%clk 0:00:31.9]} 22... Rxe7 {[%clk 0:00:21.8]} 23. Rac1 {[%clk 0:00:27.8]}
23... Rxc1 {[%clk 0:00:22.2]} 24. Rxc1 {[%clk 0:00:28]} 24... Nxf2 {[%clk
0:00:23.9]} 25. Bf3 {[%clk 0:00:28.8]} 25... Rxe3 {[%clk 0:00:22.9]} 26. Rxc6
{[%clk 0:00:30.2]} 26... g6 {[%clk 0:00:24.1]} 27. a4 {[%clk 0:00:30.7]} 27...
Ra3 {[%clk 0:00:25.3]} 28. Ra6 {[%clk 0:00:31.5]} 28... h5 {[%clk 0:00:26.5]}
29. a5 {[%clk 0:00:32.2]} 29... Ng4+ {[%clk 0:00:27.7]} 30. Kg3 {[%clk
0:00:28.6]} 30... Ne5 {[%clk 0:00:28.4]} 31. Ra8+ {[%clk 0:00:28.7]} 31... Kg7
{[%clk 0:00:29.1]} 32. a6 {[%clk 0:00:30.3]} 32... Nxf3 {[%clk 0:00:30.3]} 33.
gxf3 {[%clk 0:00:32]} 33... Kf6 {[%clk 0:00:31.8]} 34. a7 {[%clk 0:00:32.4]}
34... Kf5 {[%clk 0:00:32.7]} 35. Kg2 {[%clk 0:00:33.1]} 35... Kf4 {[%clk
0:00:33.7]} 36. Kh2 {[%clk 0:00:33.8]} 36... Ra2+ {[%clk 0:00:34.1]} 37. Kh3
{[%clk 0:00:34.2]} 37... g5 {[%clk 0:00:35.2]} 38. Rh8 {[%clk 0:00:31.6]} 38...
g4+ {[%clk 0:00:36.1]} 0-1

[Event "*** MasterClass Titled Tuesday Blitz"]
[Site "Chess.com"]
[Date "2017.08.01"]
[Round "1"]
[White "Drags95"]
[Black "ChessNinja48"]
[Result "0-1"]
[WhiteElo "2512"]
[BlackElo "2295"]
[TimeControl "180+2"]
[EndTime "13:07:55 PDT"]
[Termination "ChessNinja48 won by resignation"]

1. e4 {[%clk 0:02:59.9]} 1... e6 {[%clk 0:03:00.4]} 2. d4 {[%clk 0:02:59.7]}
2... d5 {[%clk 0:03:01.8]} 3. Nc3 {[%clk 0:02:59.4]} 3... Bb4 {[%clk 0:03:02.9]}
4. e5 {[%clk 0:02:58.6]} 4... c5 {[%clk 0:03:04.3]} 5. a3 {[%clk 0:02:58.8]}
5... Bxc3+ {[%clk 0:03:05.7]} 6. bxc3 {[%clk 0:03:00]} 6... Ne7 {[%clk
0:03:07.7]} 7. h4 {[%clk 0:03:00.2]} 7... Nbc6 {[%clk 0:03:08.4]} 8. h5 {[%clk
0:02:59.7]} 8... Qa5 {[%clk 0:03:09.6]} 9. Bd2 {[%clk 0:02:58.8]} 9... Bd7
{[%clk 0:03:10.9]} 10. h6 {[%clk 0:02:42.6]} 10... gxh6 {[%clk 0:03:11.6]} 11.
Nf3 {[%clk 0:02:41]} 11... O-O-O {[%clk 0:03:12.2]} 12. a4 {[%clk 0:02:21]}
12... c4 {[%clk 0:02:57.1]} 13. Qc1 {[%clk 0:02:15.4]} 13... Ng8 {[%clk
0:02:36.8]} 14. Nh2 {[%clk 0:01:51.3]} 14... f6 {[%clk 0:01:59]} 15. f4 {[%clk
0:01:51.6]} 15... fxe5 {[%clk 0:01:46.5]} 16. fxe5 {[%clk 0:01:51.6]} 16... Nge7
{[%clk 0:01:48.4]} 17. Ng4 {[%clk 0:01:51.4]} 17... Be8 {[%clk 0:01:41.4]} 18.
Nf6 {[%clk 0:01:50.7]} 18... Bg6 {[%clk 0:01:42.6]} 19. Be2 {[%clk 0:01:47.3]}
19... Nf5 {[%clk 0:01:37.2]} 20. Rh3 {[%clk 0:01:41.9]} 20... Rdf8 {[%clk
0:01:33.9]} 21. g4 {[%clk 0:01:39.5]} 21... Nfe7 {[%clk 0:01:31.5]} 22. Qa3
{[%clk 0:01:36.2]} 22... Qc7 {[%clk 0:01:31.7]} 23. Kd1 {[%clk 0:01:29.3]} 23...
Rf7 {[%clk 0:01:31.7]} 24. Bxh6 {[%clk 0:01:28.6]} 24... Ng8 {[%clk 0:01:17.3]}
25. g5 {[%clk 0:01:20.6]} 25... Nge7 {[%clk 0:01:18.3]} 26. Kd2 {[%clk
0:01:18.1]} 26... Nf5 {[%clk 0:01:19.3]} 27. a5 {[%clk 0:01:17.7]} 27... a6
{[%clk 0:01:20.1]} 28. Qc5 {[%clk 0:01:17.3]} 28... Qe7 {[%clk 0:01:02.1]} 29.
Qb6 {[%clk 0:00:52]} 29... Qc7 {[%clk 0:01:02.9]} 30. Qc5 {[%clk 0:00:40.5]}
30... Nce7 {[%clk 0:01:03.1]} 31. Qa3 {[%clk 0:00:35.4]} 31... Ng8 {[%clk
0:00:44.2]} 32. Bg4 {[%clk 0:00:35.5]} 32... Ngxh6 {[%clk 0:00:38.5]} 33. gxh6
{[%clk 0:00:35.7]} 33... Rxf6 {[%clk 0:00:39.8]} 34. exf6 {[%clk 0:00:37.4]}
34... Qf4+ {[%clk 0:00:40.9]} 35. Ke1 {[%clk 0:00:33.3]} 35... Qxg4 {[%clk
0:00:42.2]} 36. Qc5+ {[%clk 0:00:33.6]} 36... Kb8 {[%clk 0:00:43]} 37. Rh1
{[%clk 0:00:29.7]} 37... Bh5 {[%clk 0:00:40.6]} 38. Kd2 {[%clk 0:00:29.8]} 38...
Qf4+ {[%clk 0:00:38.9]} 0-1